bitfinex-derivatives/quotes_SOLF0:USTF0_20260312
["timestamp","ask_amount","ask_price","bid_price","bid_amount"]
[1773324175970,7.90696569,87.228,87.014,35.77569385]
[1773324175971,7.97879137,87.239,87.15,9.06069195]
[1773324176369,7.97879137,87.255,87.17,9.06069195]
[1773324177467,7.97879137,87.255,87.208,10.318]
[1773324177669,7.97879137,87.255,87.147,160.622]
[1773324177859,7.97879137,87.255,87.18,9.06069195]
[1773324178766,7.97879137,87.255,87.21,10.318]
[1773324178967,7.97627167,87.274,87.18,9.06069195]
[1773324179573,7.9636368,87.272,87.19,9.00903133]
[1773324180174,7.9636368,87.272,87.214,10.317]
[1773324180381,7.9636368,87.259,87.18,9.00903133]
[1773324180876,7.9636368,87.259,87.167,20.646]
[1773324181071,7.9636368,87.259,87.17,9.00903133]
[1773324181472,7.96299419,87.239,87.143,39.72]
[1773324181674,7.96299419,87.239,87.14,9.00903133]
[1773324181870,7.96299419,87.239,87.168,10.323]
[1773324182072,7.96299419,87.239,87.14,9.00903133]
[1773324182374,7.96299419,87.239,87.12,9.00903133]
[1773324182375,7.96299419,87.239,87.16,9.00903133]
[1773324182575,7.96299419,87.228,87.14,9.00903133]
[1773324183070,7.96299419,87.228,87.173,10.322]
[1773324183272,7.95686658,87.268,87.18,9.00903133]
[1773324183669,7.95686658,87.266,87.204,10.319]
[1773324184482,7.95686658,87.26,87.204,10.319]
[1773324184870,7.95686658,87.26,87.211,10.318]
[1773324185069,7.95686658,87.26,87.18,9.00903133]
[1773324185276,7.93838452,87.279,87.19,9.00903133]
[1773324185478,7.93838452,87.269,87.18,9.00903133]
[1773324185673,7.93838452,87.268,87.18,9.00903133]
[1773324186272,7.93838452,87.266,87.18,9.00903133]
[1773324186973,7.93838452,87.266,87.185,20.642]
[1773324187179,7.93838452,87.266,87.209,10.318]
[1773324187482,7.93838452,87.266,87.18,9.00903133]
[1773324187668,7.93905837,87.255,87.162,20.648]
[1773324187876,7.93905837,87.255,87.189,10.32]
[1773324188072,7.93905837,87.255,87.15,9.00903133]
[1773324188373,7.93905837,87.251,87.196,10.319]
[1773324188879,7.93905837,87.251,87.17,9.00903133]
[1773324189274,7.93905837,87.251,87.212,10.318]
[1773324189582,7.93905837,87.251,87.19,9.00903133]
[1773324189878,7.93905837,87.251,87.218,10.317]
[1773324190468,7.93905837,87.251,87.209,10.318]
[1773324191482,7.93146996,87.269,87.19,9.00903133]
[1773324191977,7.93146996,87.269,87.213,10.317]
[1773324192281,7.93146996,87.267,87.213,10.317]
[1773324192482,7.93146996,87.267,87.19,9.00903133]
[1773324192682,7.93146996,87.285,87.21,9.00903133]
[1773324192983,7.93146996,87.285,87.212,20.636]
[1773324193281,7.93146996,87.285,87.253,10.313]
[1773324193483,7.93146996,87.285,87.21,9.00903133]
[1773324195878,7.9478196,87.273,87.19,9.00903133]
[1773324196876,7.9478196,87.273,87.221,10.317]
[1773324197080,7.9478196,87.273,87.19,9.00903133]
[1773324197683,7.94023266,87.269,87.214,10.317]
[1773324197882,7.94023266,87.269,87.19,9.00903133]
[1773324198380,7.94023266,87.269,87.191,20.641]
[1773324199182,7.94023266,87.269,87.221,10.317]
[1773324199486,7.94023266,87.269,87.19,9.00903133]
[1773324199979,7.95784042,87.258,87.203,10.319]
[1773324200185,7.95784042,87.249,87.15,30.19426264]
[1773324200479,7.95784042,87.228,87.175,10.322]
[1773324200889,7.95784042,87.228,87.15,9.00903133]
[1773324201079,7.95784042,87.228,87.138,21.18523131]
[1773324201277,7.95784042,87.228,87.14,9.00903133]
[1773324201474,7.95784042,87.228,87.141,20.652]
[1773324202079,7.95784042,87.228,87.179,10.321]
[1773324202280,7.95784042,87.228,87.141,20.652]
[1773324202878,7.94982492,87.225,87.18,10.321]
[1773324203080,39.72,87.253,87.16,9.00903133]
[1773324203081,7.93748384,87.243,87.16,9.00903133]
[1773324203583,7.93748384,87.243,87.161,20.648]
[1773324203881,20.615,87.301,87.18,9.00903133]
[1773324203882,39.72,87.286,87.18,9.00903133]
[1773324204075,7.93748384,87.284,87.18,9.00903133]
[1773324204978,7.93748384,87.265,87.182,20.643]
[1773324205180,7.93748384,87.265,87.18,9.00903133]
[1773324205386,7.93748384,87.265,87.183,20.642]
[1773324206085,7.93748384,87.265,87.214,10.317]
[1773324207587,7.93748384,87.265,87.186,20.642]
[1773324207787,7.93748384,87.265,87.18,9.00903133]
[1773324208181,7.93235602,87.246,87.168,21.18523131]
[1773324208384,7.93235602,87.239,87.155,21.18523131]
[1773324208585,7.93235602,87.239,87.145,21.18523131]
[1773324208781,7.93235602,87.23,87.185,10.321]
[1773324209081,7.93235602,87.23,87.154,21.18523131]
[1773324209688,7.93235602,87.23,87.153,21.18523131]
[1773324209883,7.93235602,87.23,87.152,20.65]
[1773324210886,7.93235602,87.23,87.19,10.32]
[1773324211485,7.94006875,87.249,87.16,9.00903133]
[1773324211792,7.94006875,87.249,87.168,21.18523131]
[1773324211997,7.94006875,87.249,87.169,21.18523131]
[1773324212484,7.94006875,87.249,87.168,21.18523131]
[1773324212885,7.94006875,87.249,87.164,20.647]
[1773324213087,7.94006875,87.249,87.188,10.32]
[1773324214083,7.93869676,87.24,87.195,10.32]
[1773324214288,7.93869676,87.24,87.17,9.00903133]
[1773324214690,7.93869676,87.24,87.157,21.18523131]
[1773324215084,7.93869676,87.24,87.156,21.18523131]
[1773324215487,7.93898654,87.23,87.187,10.32]
[1773324215690,7.93898654,87.23,87.156,21.18523131]
[1773324215890,7.93898654,87.23,87.15,30.19426264]
[1773324216097,7.93898654,87.228,87.185,10.321]
[1773324217596,7.93769928,87.259,87.162,21.18523131]
[1773324217797,7.93769928,87.259,87.14,27.9393298]
[1773324217798,7.93769928,87.259,87.17,9.00903133]
[1773324218193,9.00903133,87.26,87.203,10.319]
[1773324218194,7.93769928,87.252,87.203,10.319]
[1773324218400,7.93769928,87.252,87.17,9.00903133]
[1773324219599,9.00903133,87.26,87.17,9.00903133]
[1773324219600,7.93797671,87.25,87.17,9.00903133]
[1773324220596,7.93797671,87.242,87.17,9.00903133]
[1773324221190,7.9336972,87.24,87.17,9.00903133]
[1773324221395,8.42487424,87.282,87.19,9.00903133]
[1773324221396,7.9336972,87.281,87.19,9.00903133]
[1773324221595,7.9336972,87.281,87.21,9.00903133]
[1773324222000,7.9336972,87.281,87.19,30.19426264]
[1773324222199,7.9336972,87.278,87.196,20.639]
[1773324223002,7.92142745,87.276,87.196,20.639]
[1773324223203,7.92142745,87.276,87.19,9.00903133]
[1773324223804,7.92142745,87.259,87.183,21.18523131]
[1773324224005,7.92142745,87.259,87.17,9.00903133]
[1773324224206,7.92142745,87.246,87.197,10.319]
[1773324224508,7.92142745,87.246,87.159,21.18523131]
[1773324225111,7.91199154,87.244,87.164,21.18523131]
[1773324225408,7.91199154,87.244,87.158,21.18523131]
[1773324226006,7.91199154,87.244,87.159,21.18523131]
[1773324226207,7.91199154,87.241,87.158,21.18523131]
[1773324226607,7.91199154,87.241,87.157,21.18523131]
[1773324226910,7.91199154,87.241,87.156,39.72]
[1773324226911,7.91199154,87.23,87.156,39.72]
[1773324227312,7.91199154,87.23,87.15,9.00903133]
[1773324228207,7.9156799,87.223,87.15,9.00903133]
[1773324228604,7.9156799,87.223,87.18,10.321]
[1773324228811,7.9156799,87.223,87.152,21.18523131]
[1773324229009,7.9156799,87.223,87.153,20.65]
[1773324229402,7.9156799,87.223,87.157,21.18523131]
[1773324229608,7.9156799,87.223,87.16,20.648]
[1773324229809,7.9156799,87.223,87.15,9.00903133]
[1773324229810,7.9156799,87.223,87.153,21.18523131]
[1773324230206,7.9156799,87.223,87.192,10.32]
[1773324230407,7.9156799,87.223,87.153,21.18523131]
[1773324230614,7.9156799,87.223,87.152,21.18523131]
[1773324230815,7.9156799,87.223,87.189,10.32]
[1773324233415,7.9156799,87.223,87.182,10.321]
[1773324234510,7.9156799,87.223,87.175,10.322]
[1773324235212,7.87970585,87.221,87.175,10.322]
[1773324235611,7.87970585,87.221,87.182,10.321]
[1773324236411,7.87970585,87.221,87.15,9.00903133]
[1773324238814,7.87970585,87.221,87.142,60.90523131]
[1773324239019,7.87970585,87.221,87.142,39.72]
[1773324239317,7.87970585,87.221,87.149,21.18523131]
[1773324239813,7.87622364,87.247,87.154,21.18523131]
[1773324240018,7.87622364,87.247,87.16,9.01655839]
[1773324240407,7.87622364,87.235,87.18,10.321]
[1773324240720,7.87622364,87.235,87.155,21.18523131]
[1773324240914,7.87622364,87.235,87.16,9.01655839]
[1773324241315,7.87622364,87.235,87.191,10.32]
[1773324241514,7.87622364,87.235,87.137,27.9393298]
[1773324241515,7.85611175,87.259,87.18,9.01655839]
[1773324241710,7.85611175,87.259,87.208,10.318]
[1773324242020,7.85611175,87.259,87.18,30.2017897]
[1773324242213,7.85611175,87.259,87.18,9.01655839]
[1773324242413,14.08404848,87.302,87.18,9.01655839]
[1773324242414,7.85611175,87.295,87.2,9.01655839]
[1773324242613,7.85611175,87.295,87.22,9.01655839]
[1773324243018,7.85611175,87.295,87.255,10.313]
[1773324243221,7.85611175,87.295,87.217,21.18523131]
[1773324243412,8.44245968,87.322,87.24,9.01655839]
[1773324243413,7.83099422,87.312,87.24,9.01655839]
[1773324243608,7.83099422,87.312,87.265,10.311]
[1773324243813,7.83099422,87.312,87.24,9.01655839]
[1773324244515,7.83099422,87.312,87.271,10.311]
[1773324245111,7.83099422,87.312,87.261,10.312]
[1773324245320,7.83099422,87.312,87.24,9.01655839]
[1773324245919,39.72,87.342,87.26,9.01655839]
[1773324245920,7.81645438,87.341,87.26,9.01655839]
[1773324246715,7.81645438,87.337,87.24,9.01655839]
[1773324246916,7.81645438,87.319,87.22,9.01655839]
[1773324247315,7.8098897,87.318,87.259,10.312]
[1773324247720,7.8098897,87.318,87.187,39.6015799]
[1773324247721,7.8098897,87.336,87.242,39.72]
[1773324247919,7.8098897,87.336,87.243,39.72]
[1773324248119,7.8098897,87.329,87.243,39.72]
[1773324248623,7.8098897,87.309,87.22,9.01655839]
[1773324249119,7.84852357,87.289,87.23,10.315]
[1773324249321,7.84852357,87.289,87.181,39.72]
[1773324249516,9.01655839,87.29,87.18,9.01655839]
[1773324249517,7.84852357,87.269,87.18,9.01655839]
[1773324249717,7.84852357,87.229,87.14,9.01655839]
[1773324250118,7.84852357,87.229,87.187,10.321]
[1773324250318,7.84852357,87.229,87.16,9.01655839]
[1773324250822,39.72,87.268,87.054,49.09269854]
[1773324250823,7.84852357,87.219,87.13,9.01655839]
[1773324251128,7.84852357,87.219,87.109,39.7]
[1773324251129,7.84852357,87.219,87.12,9.01655839]
[1773324251324,9.01655839,87.24,87.095,21.18523131]
[1773324251325,7.87775402,87.199,87.095,21.18523131]
[1773324251519,7.87775402,87.179,87.08,9.01655839]
[1773324251926,7.87775402,87.179,87.096,10.331]
[1773324252321,7.87775402,87.179,87.108,10.33]
[1773324252621,7.87775402,87.159,87.072,39.72]
[1773324252829,7.87775402,87.159,87.06,9.01655839]
[1773324253428,7.87456452,87.157,87.084,10.333]
[1773324253625,7.87456452,87.157,87.06,9.01655839]
[1773324254431,7.87456452,87.157,87.095,10.331]
[1773324254620,11.42559776,87.199,87.06,9.01655839]
[1773324254621,7.87456452,87.176,87.1,9.01655839]
[1773324254820,7.87456452,87.176,87.128,10.328]
[1773324255224,7.87456452,87.176,87.1,9.01655839]
[1773324255530,7.87456452,87.176,87.126,10.328]
[1773324256229,7.87456452,87.176,87.137,10.326]
[1773324257430,7.81081146,87.205,87.12,9.01655839]
[1773324258324,7.81081146,87.189,87.125,10.328]
[1773324259232,7.80964616,87.169,87.06,9.01655839]
[1773324259622,7.80964616,87.149,87.06,9.01655839]
[1773324261528,7.80964616,87.149,87.08,9.01655839]
[1773324262119,7.80964616,87.149,87.095,10.331]
[1773324262629,7.80964616,87.149,87.08,9.01655839]
[1773324262834,7.80964616,87.149,87.094,10.332]
[1773324263135,7.80964616,87.149,87.08,9.01655839]
[1773324263831,7.80266747,87.193,87.12,9.01655839]
[1773324264032,7.80266747,87.193,87.064,21.18523131]
[1773324264033,7.80266747,87.193,87.1,9.01655839]
[1773324264227,7.80266747,87.189,87.1,9.01655839]
[1773324264433,7.80266747,87.186,87.12,10.328]
[1773324264633,7.80266747,87.186,87.1,9.01655839]
[1773324266338,7.80266747,87.186,87.125,10.328]
[1773324266525,7.80266747,87.186,87.1,9.01655839]
[1773324267435,7.80266747,87.186,87.137,10.326]
[1773324267629,7.80266747,87.186,87.1,9.01655839]
[1773324267826,7.80266747,87.186,87.09,9.01655839]
[1773324268026,7.80266747,87.186,87.11,9.01655839]
[1773324268435,7.80266747,87.186,87.13,10.327]
[1773324268733,7.80266747,87.186,87.11,9.01655839]
[1773324272242,7.80266747,87.186,87.093,39.74]
[1773324273139,10.322,87.174,87.117,10.329]
[1773324273339,7.83594333,87.173,87.09,9.01655839]
[1773324274345,7.83594333,87.17,87.121,10.328]
[1773324274847,7.83594333,87.17,87.09,9.01655839]
[1773324275038,7.83594333,87.17,87.092,20.664]
[1773324275243,7.83574345,87.199,87.11,9.01655839]
[1773324275644,7.83574345,87.199,87.15,10.325]
[1773324276747,7.83574345,87.196,87.142,10.326]
[1773324276940,7.83574345,87.196,87.11,9.01655839]
[1773324278547,7.83574345,87.196,87.146,10.325]
[1773324280144,7.8303914,87.193,87.114,20.659]
[1773324280350,7.8303914,87.193,87.101,2.73490849]
[1773324280955,7.8303914,87.193,87.153,10.325]
[1773324281454,7.8303914,87.193,87.145,10.325]
[1773324282653,3.71298173,87.19,87.108,2.72064925]
[1773324282854,3.71298173,87.179,87.108,2.72064925]
[1773324283052,3.71298173,87.179,87.08,20.667]
[1773324283053,3.75187593,87.159,87.091,2.72064925]
[1773324283245,3.75187593,87.158,87.091,2.72064925]
[1773324283853,3.75187593,87.156,87.103,10.331]
[1773324284053,3.75187593,87.156,87.091,2.72064925]
[1773324284455,3.75187593,87.151,87.091,2.72064925]
[1773324284959,3.75187593,87.149,87.07,2.7268727]
[1773324286453,3.75187593,87.149,87.093,10.332]
[1773324286652,3.75187593,87.149,87.07,2.7268727]
[1773324286852,3.75187593,87.149,87.09,2.73676265]
[1773324287449,3.75187593,87.149,87.106,10.33]
[1773324287956,3.75187593,87.149,87.098,10.331]
[1773324288860,3.75187593,87.144,87.069,2.7391653]
[1773324289558,3.75187593,87.142,87.069,2.7391653]
[1773324290859,3.78920922,87.139,87.078,10.333]
[1773324291558,3.78920922,87.139,87.085,10.333]
[1773324291861,3.78920922,87.129,87.048,2.7141662]
[1773324292058,3.78920922,87.109,87.03,2.7141662]
[1773324292466,3.78920922,87.089,87.011,2.7141662]
[1773324292851,3.78920922,87.079,87.011,2.7141662]
[1773324293056,3.78920922,87.069,87.011,2.7141662]
[1773324293563,3.78920922,87.069,86.99,9.01655839]
[1773324293755,3.78920922,87.059,86.993,2.7047002]
[1773324295659,3.78920922,87.081,87.019,10.34]
[1773324296161,3.78920922,87.081,87.011,2.75365499]
[1773324297154,3.78920922,87.081,87.037,10.338]
[1773324297458,3.78920922,87.099,87.03,2.75179265]
[1773324297657,3.78920922,87.099,87.031,2.75179265]
[1773324298050,3.78920922,87.119,87.048,2.75179265]
[1773324298254,3.78920922,87.119,87.051,2.75179265]
[1773324300367,3.78920922,87.144,87.051,2.75179265]
[1773324300865,3.78920922,87.144,87.051,2.77497397]
[1773324301164,9.01655839,87.15,87.07,10.334]
[1773324301165,3.78920922,87.131,87.07,10.334]
[1773324301365,3.78920922,87.149,87.071,2.77052547]
[1773324301756,3.78920922,87.169,87.113,10.329]
[1773324301959,3.78920922,87.169,87.092,2.77052547]
[1773324302161,3.78920922,87.169,87.121,10.328]
[1773324303359,3.78920922,87.169,87.13,10.327]
[1773324303559,3.78920922,87.169,87.109,2.68773668]
[1773324303864,3.78920922,87.169,87.09,2.68773668]
[1773324304456,3.78920922,87.169,87.118,10.329]
[1773324305455,3.78920922,87.167,87.105,10.33]
[1773324305653,3.78920922,87.167,87.09,2.68863437]
[1773324306367,3.78920922,87.167,87.122,10.328]
[1773324307470,3.78920922,87.186,87.13,10.327]
[1773324307659,3.78920922,87.186,87.107,2.70245422]
[1773324307864,3.78920922,87.186,87.09,2.70245422]
[1773324308065,3.78920922,87.182,87.121,10.328]
[1773324308259,3.78920922,87.182,87.09,2.70245422]
[1773324308461,3.78920922,87.169,87.09,2.70245422]
[1773324308660,3.78920922,87.169,87.116,10.329]
[1773324308868,3.78920922,87.167,87.09,2.70245422]
[1773324309168,3.78920922,87.189,87.108,2.6996635]
[1773324309367,3.78920922,87.187,87.108,2.6996635]
[1773324309759,39.76,87.188,87.09,9.03329741]
[1773324309760,3.78920922,87.168,87.105,10.33]
[1773324309967,3.78920922,87.168,87.091,2.6996635]
[1773324310164,3.78920922,87.149,87.091,2.6996635]
[1773324310766,3.78920922,87.149,87.092,10.332]
[1773324311367,3.78920922,87.146,87.082,10.333]
[1773324311568,3.78920922,87.139,87.056,2.69063741]
[1773324312569,3.78920922,87.125,87.056,2.69063741]
[1773324313873,9.03329741,87.17,87.029,21.18523131]
[1773324313874,3.78920922,87.142,87.074,2.7073772]
[1773324314671,39.76,87.15,87.074,2.7073772]
[1773324314971,3.78920922,87.162,87.095,2.7073772]
[1773324316077,3.78920922,87.162,87.123,10.328]
[1773324316370,3.78920922,87.162,87.095,2.7073772]
[1773324317374,3.78920922,87.162,87.073,2.65637163]
[1773324317572,3.78920922,87.139,87.085,10.333]
[1773324318075,3.78920922,87.139,87.034,39.76]
[1773324318076,3.78920922,87.119,87.041,2.65637163]
[1773324318476,3.78920922,87.099,87.041,2.65637163]
[1773324318675,39.76,87.114,87.041,2.65637163]
[1773324318972,3.78920922,87.119,87.041,2.65637163]
[1773324319177,3.78920922,87.106,87.041,2.65637163]
[1773324319574,9.03329741,87.12,87.071,10.334]
[1773324320778,12.71346104,87.12,87.071,10.334]
[1773324321575,3.68016363,87.12,87.071,10.334]
[1773324321776,3.68016363,87.12,87.063,10.335]
[1773324321970,3.68016363,87.12,87.058,2.58104554]
[1773324322680,3.68016363,87.138,87.058,2.58104554]
[1773324322973,10.56784381,87.19,87.058,2.58104554]
[1773324322974,3.68016363,87.129,87.058,2.58104554]
[1773324323180,3.68016363,87.109,87.027,2.58973935]
[1773324323578,3.68016363,87.104,87.027,2.58973935]
[1773324324674,14.01116363,87.103,87.047,10.337]
[1773324325176,3.68016363,87.103,87.027,2.58973935]
[1773324326074,3.68016363,87.093,87.035,10.339]
[1773324326281,3.68016363,87.089,87.01,2.59407396]
[1773324326476,48.81329741,87.11,87.01,2.59407396]
[1773324326477,3.68016363,87.069,87.01,2.59407396]
[1773324327368,3.68016363,87.068,87.012,10.341]
[1773324327975,3.68016363,87.086,87.01,2.59407396]
[1773324328480,39.78,87.088,87.02,10.34]
[1773324328481,3.68016363,87.084,87.02,10.34]
[1773324328883,3.68016363,87.084,87.01,2.59407396]
[1773324329073,3.68016363,87.106,87.02,2.56403959]
[1773324329271,3.68016363,87.089,87.02,2.56403959]
[1773324329475,3.68016363,87.089,86.966,160.956]
[1773324329476,3.68016363,87.069,87.001,2.56403959]
[1773324329781,3.68016363,87.087,87.001,2.56403959]
[1773324330681,3.68016363,87.086,87.032,10.339]
[1773324330976,3.68016363,87.086,87.018,2.56403959]
[1773324331181,9.03329741,87.08,87.018,2.56403959]
[1773324331786,3.68016363,87.077,87.018,10.341]
[1773324332076,12.71346104,87.06,87.0,2.56886694]
[1773324332276,3.68016363,87.058,86.98,2.56886694]
[1773324332676,39.78,87.074,86.98,2.56886694]
[1773324332988,39.78,87.074,86.97,9.03329741]
[1773324332989,3.68016363,87.077,87.008,2.56886694]
[1773324333380,3.68016363,87.077,87.027,10.339]
[1773324333980,3.68016363,87.077,87.008,2.56886694]
[1773324334188,3.68016363,87.077,87.026,10.34]
[1773324335481,3.68016363,87.095,87.025,2.34298845]
[1773324336184,3.68016363,87.095,87.05,10.337]
[1773324337883,3.68016363,87.095,87.041,10.338]
[1773324337884,9.03329741,87.09,87.041,10.338]
[1773324338080,3.68016363,87.095,87.025,2.34298845]
[1773324338584,9.03329741,87.11,87.025,2.34298845]
[1773324338784,3.68016363,87.109,87.025,2.34298845]
[1773324339385,3.68016363,87.103,87.05,10.337]
[1773324339888,3.68016363,87.103,87.025,2.34298845]
[1773324340583,3.68016363,87.079,87.004,2.36932843]
[1773324341089,3.68016363,87.075,87.021,10.34]
[1773324342687,3.68016363,87.072,87.021,10.34]
[1773324343386,3.73481508,87.07,87.013,10.341]
[1773324343581,3.73481508,87.07,87.004,2.36932843]
[1773324343984,3.73481508,87.059,86.983,2.38320171]
[1773324345181,3.73481508,87.051,86.983,2.38320171]
[1773324345387,3.73481508,87.039,86.943,2.38693057]
[1773324345787,3.73481508,87.038,86.974,10.346]
[1773324346291,3.73481508,87.038,86.96,2.38693057]
[1773324346486,3.73481508,87.036,86.974,10.346]
[1773324346791,3.73481508,87.036,86.96,2.38693057]
[1773324347391,3.73481508,87.032,86.971,2.42695898]
[1773324347693,3.73481508,87.051,86.971,2.42695898]
[1773324347892,3.73481508,87.051,87.002,10.342]
[1773324348191,3.73481508,87.069,86.991,2.42695898]
[1773324348383,20.655,87.133,87.001,2.42695898]
[1773324348384,3.73481508,87.087,87.001,2.42695898]
[1773324348588,3.73481508,87.087,87.019,2.42695898]
[1773324350892,3.73481508,87.087,87.032,10.339]
[1773324351085,3.73481508,87.087,87.019,2.42695898]
[1773324351287,3.73481508,87.087,87.001,2.43453691]
[1773324351494,3.81464856,87.078,87.001,2.43453691]
[1773324351995,9.03329741,87.07,87.001,2.43453691]
[1773324352194,3.81464856,87.078,87.001,2.43453691]
[1773324352584,3.81464856,87.071,87.009,10.342]
[1773324352891,3.81464856,87.071,87.001,2.43453691]
[1773324353189,3.81464856,87.071,87.016,10.341]
[1773324354492,3.81464856,87.059,86.984,2.42954452]
[1773324354892,3.81464856,87.059,86.967,20.694]
[1773324354893,3.81464856,87.059,87.012,10.341]
[1773324355493,3.81464856,87.079,87.012,10.341]
[1773324355693,3.81464856,87.079,87.002,2.42954452]
[1773324356288,3.81464856,87.077,87.017,10.341]
[1773324356497,3.81464856,87.077,87.002,2.42954452]
[1773324356695,3.81464856,87.077,87.017,10.341]
[1773324357899,3.81464856,87.073,87.017,10.341]
[1773324359396,9.03329741,87.08,87.028,10.339]
[1773324359594,3.81464856,87.079,87.028,10.339]
[1773324360193,3.81464856,87.079,87.036,10.338]
[1773324360495,3.81464856,87.094,87.019,2.50580131]
[1773324361702,3.81464856,87.088,87.028,10.339]
[1773324362098,39.8,87.099,86.981,2.49593472]
[1773324362099,3.81464856,87.057,86.981,2.49593472]
[1773324362301,9.04848839,87.05,86.981,2.49593472]
[1773324362501,3.81464856,87.057,86.981,2.49593472]
[1773324362905,3.81464856,87.057,86.951,39.8]
[1773324362906,3.81464856,87.075,87.0,2.49593472]
[1773324363095,3.81464856,87.095,87.011,2.48379846]
[1773324363899,3.81464856,87.115,87.031,2.48379846]
[1773324364300,3.81464856,87.114,87.055,10.336]
[1773324364500,3.81464856,87.114,87.031,2.48379846]
[1773324365205,3.81464856,87.099,87.031,2.48379846]
[1773324365707,10.56784381,87.139,87.031,2.48379846]
[1773324365708,3.81464856,87.118,87.031,2.48379846]
[1773324366408,3.81464856,87.116,87.058,10.336]
[1773324366902,9.04848839,87.11,87.048,2.47759412]
[1773324367206,12.86313695,87.11,87.048,2.47759412]
[1773324367798,10.33,87.107,87.048,2.47759412]
[1773324368101,3.81464856,87.106,87.029,2.4697089]
[1773324368302,3.81464856,87.095,87.037,10.338]
[1773324368607,3.81464856,87.095,87.029,2.4697089]
[1773324369903,3.81464856,87.113,87.053,10.336]
[1773324370309,3.81464856,87.113,87.045,2.4639173]
[1773324371104,3.81464856,87.113,87.056,2.47405892]
[1773324371500,9.04848839,87.13,87.056,2.47405892]
[1773324371705,3.81464856,87.131,87.056,2.47405892]
[1773324372207,3.81464856,87.131,87.073,10.334]
[1773324372407,3.81464856,87.131,87.056,2.47405892]
[1773324373006,3.81464856,87.131,87.08,10.333]
[1773324373403,3.81464856,87.131,87.056,2.47405892]
[1773324373611,3.81464856,87.128,87.064,10.335]
[1773324374014,3.81464856,87.128,87.039,2.46529121]
[1773324374607,3.81464856,87.107,87.039,2.46529121]
[1773324375201,3.81464856,87.107,87.055,10.336]
[1773324376311,3.81464856,87.104,87.046,10.337]
[1773324376506,3.81464856,87.104,87.021,2.4636376]
[1773324377014,3.81464856,87.095,87.021,2.4636376]
[1773324377214,3.81464856,87.089,87.021,2.4636376]
[1773324377619,3.81464856,87.078,87.028,10.339]
[1773324378416,3.81464856,87.078,87.019,10.34]
[1773324378611,3.81464856,87.078,87.002,2.46995051]
[1773324380015,3.81464856,87.078,87.026,10.34]
[1773324380215,3.81464856,87.078,87.018,2.5022344]
[1773324381915,3.81464856,87.078,87.033,10.339]
[1773324383514,4.00433802,87.096,87.018,2.5022344]
[1773324384218,4.00433802,87.096,87.048,10.337]
[1773324384815,4.00433802,87.096,87.036,2.50646622]
[1773324385018,4.00433802,87.092,87.041,10.338]
[1773324385219,4.00433802,87.092,87.036,2.50646622]
[1773324385419,10.33,87.107,87.059,10.336]
[1773324386122,4.00433802,87.104,87.036,2.50646622]
[1773324387821,4.00433802,87.102,87.048,10.337]
[1773324388213,4.00433802,87.102,87.036,2.50646622]
[1773324388816,4.00433802,87.109,87.036,2.50646622]
[1773324389631,4.00433802,87.099,87.052,10.337]
[1773324390223,4.00433802,87.097,87.018,2.49764313]
[1773324391029,4.00433802,87.089,87.018,2.49764313]
[1773324391326,4.00433802,87.086,87.018,2.49764313]
[1773324391725,4.00433802,87.086,87.021,2.44625901]
[1773324391925,4.00433802,87.086,87.047,10.337]
[1773324393629,4.00433802,87.086,87.021,2.44625901]
[1773324394024,10.331,87.099,87.051,10.337]
[1773324394225,4.00433802,87.103,87.039,2.45669253]
[1773324396620,4.00433802,87.103,87.023,21.30648623]
[1773324396621,4.00433802,87.093,87.04,10.338]
[1773324399029,4.00433802,87.091,87.04,10.338]
[1773324399934,4.00433802,87.091,87.046,10.337]
[1773324400629,4.00433802,87.09,87.037,2.45658361]
[1773324401530,4.00433802,87.09,87.054,10.336]
[1773324401830,4.00433802,87.109,87.054,10.336]
[1773324402035,4.00433802,87.109,87.037,2.45658361]
[1773324402440,4.00433802,87.096,87.046,10.337]
[1773324402836,4.00433802,87.092,87.037,2.45658361]
[1773324403140,4.00433802,87.089,87.019,2.45085855]
[1773324403735,4.00433802,87.089,87.02,2.44970055]
[1773324404135,4.00433802,87.089,87.021,2.44967165]
[1773324404336,4.00433802,87.089,87.043,10.338]
[1773324405541,3.70569786,87.086,87.043,10.338]
[1773324405839,3.70569786,87.086,87.034,10.339]
[1773324406135,3.70569786,87.076,87.034,10.339]
[1773324406336,3.70569786,87.076,87.022,10.34]
[1773324406538,3.70569786,87.049,86.99,2.44830803]
[1773324406841,3.70569786,87.038,86.973,2.44830803]
[1773324407538,3.70569786,87.038,86.974,2.44301196]